[Event "Titled Tuesday Blitz August 17 2021"]
[White "Diakonova, Ekaterina"]
[Black "Pastar, Slaven"]
[WhiteFideId "24172936"]
[BlackFideId "14402718"]
[WhiteElo "2102"]
[BlackElo "2150"]
[Result "1-0"]
[Round "06"]
[TimeControl "180+1"]
[Date "2021.08.18"]
[WhiteClock "0:00:09"]
[BlackClock "0:00:01"]

1. Nf3 {[%clk 0:03:00]}  b6 {[%clk 0:03:00]} 2. g3 {[%clk 0:03:01]}  Bb7 {[%clk 0:03:01]} 3. Bg2 {[%clk 0:03:01]}  g6 {[%clk 0:03:01]} 4. d4 {[%clk 0:03:01]}  Bg7 {[%clk 0:03:02]} 5. b3 {[%clk 0:03:01]}  c5 {[%clk 0:02:54]} 6. Bb2 {[%clk 0:03:01]}  Nc6 {[%clk 0:02:51]} 7. O-O {[%clk 0:02:58]}  cxd4 {[%clk 0:02:49]} 8. Nxd4 {[%clk 0:02:58]}  Nf6 {[%clk 0:02:45]} 9. Nxc6 {[%clk 0:02:56]}  Bxc6 {[%clk 0:02:42]} 10. c4 {[%clk 0:02:33]}  O-O {[%clk 0:02:39]} 11. Nc3 {[%clk 0:02:26]}  Bxg2 {[%clk 0:02:37]} 12. Kxg2 {[%clk 0:02:25]}  Qc7 {[%clk 0:02:38]} 13. Rc1 {[%clk 0:02:19]}  Ne4 {[%clk 0:02:32]} 14. Nd5 {[%clk 0:02:13]}  Qd6 {[%clk 0:02:14]} 15. Bxg7 {[%clk 0:02:09]}  Kxg7 {[%clk 0:02:15]} 16. Qd4+ {[%clk 0:02:05]}  Nf6 {[%clk 0:02:14]} 17. e4 {[%clk 0:01:48]}  e5 {[%clk 0:02:08]} 18. Qe3 {[%clk 0:01:34]}  Nxd5 {[%clk 0:02:05]} 19. cxd5 {[%clk 0:01:21]}  Rac8 {[%clk 0:02:03]} 20. h4 {[%clk 0:01:21]}  Qa3 {[%clk 0:01:57]} 21. h5 {[%clk 0:01:06]}  h6 {[%clk 0:01:43]} 22. hxg6 {[%clk 0:01:01]}  fxg6 {[%clk 0:01:41]} 23. Rh1 {[%clk 0:00:45]}  g5 {[%clk 0:01:41]} 24. Qd2 {[%clk 0:00:45]}  Qd6 {[%clk 0:01:27]} 25. b4 {[%clk 0:00:41]}  Qf6 {[%clk 0:01:27]} 26. Qe2 {[%clk 0:00:38]}  a5 {[%clk 0:01:08]} 27. bxa5 {[%clk 0:00:35]}  bxa5 {[%clk 0:01:08]} 28. Rxc8 {[%clk 0:00:36]}  Rxc8 {[%clk 0:01:08]} 29. Qb5 {[%clk 0:00:36]}  Rf8 {[%clk 0:01:02]} 30. Qxd7+ {[%clk 0:00:33]}  Rf7 {[%clk 0:01:02]} 31. Qf5 {[%clk 0:00:27]}  Qe7 {[%clk 0:00:32]} 32. Qe6 {[%clk 0:00:24]}  Qxe6 {[%clk 0:00:26]} 33. dxe6 {[%clk 0:00:25]}  Re7 {[%clk 0:00:18]} 34. Rd1 {[%clk 0:00:24]}  Kf6 {[%clk 0:00:17]} 35. Rd5 {[%clk 0:00:24]}  Rxe6 {[%clk 0:00:10]} 36. Rxa5 {[%clk 0:00:24]}  Rb6 {[%clk 0:00:09]} 37. a4 {[%clk 0:00:21]}  g4 {[%clk 0:00:07]} 38. Rb5 {[%clk 0:00:20]}  Rc6 {[%clk 0:00:06]} 39. a5 {[%clk 0:00:20]}  Rc4 {[%clk 0:00:06]} 40. Rb6+ {[%clk 0:00:20]}  Kf7 {[%clk 0:00:03]} 41. Rxh6 {[%clk 0:00:19]}  Rxe4 {[%clk 0:00:03]} 42. a6 {[%clk 0:00:19]}  Ra4 {[%clk 0:00:03]} 43. Rh4 {[%clk 0:00:10]}  Rxa6 {[%clk 0:00:02]} 44. Rxg4 {[%clk 0:00:10]}  Kf6 {[%clk 0:00:03]} 45. Rh4 {[%clk 0:00:09]}  Kf5 {[%clk 0:00:02]} 46. Rh5+ {[%clk 0:00:09]}  Ke4 {[%clk 0:00:01]} 47. f3+ {[%clk 0:00:09]}  Kd5 {[%clk 0:00:01]} 48. f4 {[%clk 0:00:09]}  Ra2+ {[%clk 0:00:01]} 49. Kf3 {[%clk 0:00:08]}  Kd4 {[%clk 0:00:02]} 50. Rxe5 {[%clk 0:00:08]}  Ra3+ {[%clk 0:00:02]} 51. Kg4 {[%clk 0:00:08]}  Ra8 {[%clk 0:00:02]} 52. Re6 {[%clk 0:00:07]}  Rg8+ {[%clk 0:00:03]} 53. Kf3 {[%clk 0:00:07]}  Kd5 {[%clk 0:00:02]} 54. f5 {[%clk 0:00:07]}  Rf8 {[%clk 0:00:02]} 55. g4 {[%clk 0:00:08]}  Rg8 {[%clk 0:00:02]} 56. Kf4 {[%clk 0:00:08]}  Kd4 {[%clk 0:00:02]} 57. Re7 {[%clk 0:00:09]}  Kd5 {[%clk 0:00:03]} 58. f6 {[%clk 0:00:09]}  Kd6 {[%clk 0:00:04]} 59. Kf5 {[%clk 0:00:09]}  Ra8 {[%clk 0:00:03]} 60. g5 {[%clk 0:00:09]}  Ra1 {[%clk 0:00:03]} 61. Kg6 {[%clk 0:00:09]}  Rf1 {[%clk 0:00:04]} 62. Re8 {[%clk 0:00:09]}  Kd7 {[%clk 0:00:04]} 63. f7 {[%clk 0:00:10]}  Ra1 {[%clk 0:00:01]} 64. f8=Q {[%clk 0:00:09]} 1-0


[Site "https://www.chess.com"]

[Event "Titled Tuesday Blitz August 17 2021"]
[White "Eternauta2400"]
[Black "Ozen, Bahadir"]
[BlackFideId "6337058"]
[WhiteElo "2556"]
[BlackElo "2503"]
[Result "1/2-1/2"]
[Round "06"]
[TimeControl "180+1"]
[Date "2021.08.17"]
[WhiteClock "0:00:19"]
[BlackClock "0:00:50"]

1. e4 {[%clk 0:03:00]}  g6 {[%clk 0:03:00]} 2. h4 {[%clk 0:02:59]}  d5 {[%clk 0:02:58]} 3. exd5 {[%clk 0:02:54]}  Nf6 {[%clk 0:02:58]} 4. Bb5+ {[%clk 0:02:49]}  Nbd7 {[%clk 0:02:53]} 5. Nc3 {[%clk 0:02:45]}  Bg7 {[%clk 0:02:52]} 6. d4 {[%clk 0:02:42]}  a6 {[%clk 0:02:52]} 7. Be2 {[%clk 0:02:38]}  b5 {[%clk 0:02:48]} 8. h5 {[%clk 0:02:38]}  b4 {[%clk 0:02:45]} 9. h6 {[%clk 0:02:35]}  Bf8 {[%clk 0:02:45]} 10. Na4 {[%clk 0:02:30]}  Bb7 {[%clk 0:02:45]} 11. Nf3 {[%clk 0:02:24]}  Nxd5 {[%clk 0:02:43]} 12. c4 {[%clk 0:02:22]}  bxc3 {[%clk 0:02:42]} 13. bxc3 {[%clk 0:02:18]}  e6 {[%clk 0:02:37]} 14. c4 {[%clk 0:02:18]}  N5f6 {[%clk 0:02:25]} 15. O-O {[%clk 0:02:19]}  Ng4 {[%clk 0:02:10]} 16. Rb1 {[%clk 0:02:17]}  Be4 {[%clk 0:02:10]} 17. Ng5 {[%clk 0:02:13]}  Bxb1 {[%clk 0:02:08]} 18. Bxg4 {[%clk 0:02:13]}  Be7 {[%clk 0:01:57]} 19. Bxe6 {[%clk 0:01:58]}  Bxg5 {[%clk 0:01:55]} 20. Bxg5 {[%clk 0:01:56]}  Qxg5 {[%clk 0:01:52]} 21. Bxd7+ {[%clk 0:01:56]}  Kxd7 {[%clk 0:01:53]} 22. Qxb1 {[%clk 0:01:54]}  Rab8 {[%clk 0:01:51]} 23. Nc5+ {[%clk 0:01:54]}  Qxc5 {[%clk 0:01:50]} 24. Qxb8 {[%clk 0:01:54]}  Rxb8 {[%clk 0:01:49]} 25. dxc5 {[%clk 0:01:53]}  Re8 {[%clk 0:01:25]} 26. Rd1+ {[%clk 0:01:42]}  Kc6 {[%clk 0:01:25]} 27. Kf1 {[%clk 0:01:43]}  Re5 {[%clk 0:01:18]} 28. g4 {[%clk 0:01:38]}  g5 {[%clk 0:01:16]} 29. Rd8 {[%clk 0:01:35]}  Re6 {[%clk 0:01:16]} 30. Rg8 {[%clk 0:01:33]}  Rxh6 {[%clk 0:01:16]} 31. Rxg5 {[%clk 0:01:33]}  Rg6 {[%clk 0:01:14]} 32. Rf5 {[%clk 0:01:29]}  Rxg4 {[%clk 0:01:14]} 33. Rxf7 {[%clk 0:01:29]}  h5 {[%clk 0:01:11]} 34. Rf6+ {[%clk 0:01:27]}  Kxc5 {[%clk 0:01:11]} 35. Rxa6 {[%clk 0:01:25]}  h4 {[%clk 0:01:08]} 36. Rh6 {[%clk 0:01:24]}  Kxc4 {[%clk 0:01:07]} 37. Rc6+ {[%clk 0:01:22]}  Kb4 {[%clk 0:01:06]} 38. Rxc7 {[%clk 0:01:22]}  Ka3 {[%clk 0:01:05]} 39. Ra7+ {[%clk 0:01:09]}  Kb4 {[%clk 0:01:05]} 40. f3 {[%clk 0:01:08]}  Rc4 {[%clk 0:01:01]} 41. Ke2 {[%clk 0:00:58]}  Kb5 {[%clk 0:00:58]} 42. Ke3 {[%clk 0:00:56]}  Kb6 {[%clk 0:00:55]} 43. Rh7 {[%clk 0:00:55]}  Ra4 {[%clk 0:00:55]} 44. f4 {[%clk 0:00:51]}  h3 {[%clk 0:00:55]} 45. f5 {[%clk 0:00:50]}  Rxa2 {[%clk 0:00:54]} 46. f6 {[%clk 0:00:38]}  Ra1 {[%clk 0:00:54]} 47. Ke4 {[%clk 0:00:37]}  Kc6 {[%clk 0:00:53]} 48. Rxh3 {[%clk 0:00:30]}  Rf1 {[%clk 0:00:51]} 49. Ke5 {[%clk 0:00:28]}  Kd7 {[%clk 0:00:51]} 50. Ra3 {[%clk 0:00:19]}  Ke8 {[%clk 0:00:51]} 51. Ra8+ {[%clk 0:00:16]}  Kf7 {[%clk 0:00:51]} 52. Ra7+ {[%clk 0:00:17]}  Kf8 {[%clk 0:00:52]} 53. Ra8+ {[%clk 0:00:17]}  Kf7 {[%clk 0:00:52]} 54. Ra7+ {[%clk 0:00:18]}  Kf8 {[%clk 0:00:52]} 55. Ra8+ {[%clk 0:00:19]}  Kf7 {[%clk 0:00:50]} 1/2-1/2


[Site "https://www.chess.com"]

[Event "Titled Tuesday Blitz August 17 2021"]
[White "Eynullayev, Altay"]
[Black "Potapova, Margarita"]
[WhiteFideId "13413562"]
[BlackFideId "14126869"]
[WhiteElo "2079"]
[BlackElo "2214"]
[Result "1/2-1/2"]
[Round "06"]
[TimeControl "180+1"]
[Date "2021.08.17"]
[WhiteClock "0:00:22"]
[BlackClock "0:00:17"]

1. e4 {[%clk 0:03:00]}  c5 {[%clk 0:02:59]} 2. Nf3 {[%clk 0:03:00]}  d6 {[%clk 0:02:59]} 3. d4 {[%clk 0:03:00]}  cxd4 {[%clk 0:03:00]} 4. Nxd4 {[%clk 0:03:00]}  Nf6 {[%clk 0:03:01]} 5. Nc3 {[%clk 0:03:01]}  a6 {[%clk 0:03:01]} 6. Be2 {[%clk 0:03:01]}  e5 {[%clk 0:03:01]} 7. Nb3 {[%clk 0:03:02]}  Be7 {[%clk 0:03:02]} 8. Be3 {[%clk 0:03:02]}  Be6 {[%clk 0:03:01]} 9. Nd5 {[%clk 0:03:03]}  Nbd7 {[%clk 0:02:59]} 10. Qd3 {[%clk 0:03:03]}  O-O {[%clk 0:02:58]} 11. O-O {[%clk 0:03:04]}  Bxd5 {[%clk 0:02:59]} 12. exd5 {[%clk 0:03:05]}  Ne8 {[%clk 0:02:59]} 13. a4 {[%clk 0:03:03]}  a5 {[%clk 0:02:56]} 14. Qd2 {[%clk 0:03:00]}  h6 {[%clk 0:02:49]} 15. Bb5 {[%clk 0:02:57]}  f5 {[%clk 0:02:30]} 16. f4 {[%clk 0:02:53]}  exf4 {[%clk 0:02:04]} 17. Bxf4 {[%clk 0:02:51]}  Ndf6 {[%clk 0:02:04]} 18. Rae1 {[%clk 0:02:14]}  Ne4 {[%clk 0:02:03]} 19. Qd3 {[%clk 0:02:13]}  Nc7 {[%clk 0:01:58]} 20. Nd4 {[%clk 0:02:08]}  Bh4 {[%clk 0:01:49]} 21. g3 {[%clk 0:02:05]}  Bg5 {[%clk 0:01:49]} 22. Ne6 {[%clk 0:01:55]}  Nxe6 {[%clk 0:01:48]} 23. dxe6 {[%clk 0:01:56]}  Bf6 {[%clk 0:01:30]} 24. Rxe4 {[%clk 0:01:49]}  fxe4 {[%clk 0:01:28]} 25. Qxe4 {[%clk 0:01:49]}  Qb6+ {[%clk 0:01:04]} 26. Be3 {[%clk 0:01:48]}  d5 {[%clk 0:01:05]} 27. Bxb6 {[%clk 0:01:01]}  dxe4 {[%clk 0:01:05]} 28. Re1 {[%clk 0:01:00]}  Be7 {[%clk 0:00:47]} 29. Rxe4 {[%clk 0:00:59]}  Rac8 {[%clk 0:00:44]} 30. c3 {[%clk 0:00:59]}  Rf6 {[%clk 0:00:37]} 31. Bd7 {[%clk 0:00:59]}  Rcf8 {[%clk 0:00:37]} 32. Kg2 {[%clk 0:00:57]}  Rf5 {[%clk 0:00:32]} 33. h4 {[%clk 0:00:53]}  Rd5 {[%clk 0:00:32]} 34. Re2 {[%clk 0:00:50]}  Rd3 {[%clk 0:00:29]} 35. Bb5 {[%clk 0:00:46]}  Rd1 {[%clk 0:00:26]} 36. Rf2 {[%clk 0:00:41]}  Rxf2+ {[%clk 0:00:26]} 37. Kxf2 {[%clk 0:00:39]}  Rd2+ {[%clk 0:00:21]} 38. Kf3 {[%clk 0:00:36]}  Rxb2 {[%clk 0:00:22]} 39. Bxa5 {[%clk 0:00:36]}  Kf8 {[%clk 0:00:21]} 40. Bb6 {[%clk 0:00:32]}  Rc2 {[%clk 0:00:19]} 41. Bd4 {[%clk 0:00:31]}  Bf6 {[%clk 0:00:17]} 42. Bc5+ {[%clk 0:00:26]}  Be7 {[%clk 0:00:17]} 43. Bd4 {[%clk 0:00:26]}  Bf6 {[%clk 0:00:17]} 44. Bc5+ {[%clk 0:00:21]}  Be7 {[%clk 0:00:17]} 45. Bd4 {[%clk 0:00:22]} 1/2-1/2


[Site "https://www.chess.com"]

[Event "Titled Tuesday Blitz August 17 2021"]
[White "Fajdetic, Hrvoje"]
[Black "Bodnar, Nikolay"]
[WhiteFideId "14501945"]
[BlackFideId "14106469"]
[WhiteElo "2153"]
[BlackElo "2296"]
[Result "0-1"]
[Round "06"]
[TimeControl "180+1"]
[Date "2021.08.18"]
[WhiteClock "0:00:01"]
[BlackClock "0:00:15"]

1. d4 {[%clk 0:03:00]}  Nf6 {[%clk 0:02:59]} 2. Bf4 {[%clk 0:03:00]}  g6 {[%clk 0:02:37]} 3. Nc3 {[%clk 0:02:59]}  Bg7 {[%clk 0:02:37]} 4. e4 {[%clk 0:02:59]}  d6 {[%clk 0:02:38]} 5. Qd2 {[%clk 0:02:59]}  h6 {[%clk 0:02:31]} 6. h4 {[%clk 0:02:52]}  Nc6 {[%clk 0:02:30]} 7. O-O-O {[%clk 0:02:40]}  Ng4 {[%clk 0:02:16]} 8. d5 {[%clk 0:02:28]}  Nb8 {[%clk 0:02:01]} 9. Nf3 {[%clk 0:02:21]}  c5 {[%clk 0:01:57]} 10. Bb5+ {[%clk 0:02:15]}  Bd7 {[%clk 0:01:58]} 11. Bc4 {[%clk 0:01:44]}  a6 {[%clk 0:01:54]} 12. e5 {[%clk 0:01:40]}  dxe5 {[%clk 0:01:49]} 13. Bg3 {[%clk 0:01:24]}  b5 {[%clk 0:01:44]} 14. Be2 {[%clk 0:01:23]}  f5 {[%clk 0:01:40]} 15. Rde1 {[%clk 0:01:10]}  e4 {[%clk 0:01:38]} 16. Nh2 {[%clk 0:01:05]}  Ne5 {[%clk 0:01:37]} 17. f3 {[%clk 0:00:57]}  b4 {[%clk 0:01:27]} 18. Nb1 {[%clk 0:00:47]}  O-O {[%clk 0:01:09]} 19. fxe4 {[%clk 0:00:45]}  fxe4 {[%clk 0:01:06]} 20. Qe3 {[%clk 0:00:18]}  Bf5 {[%clk 0:00:52]} 21. Qxc5 {[%clk 0:00:14]}  Nbd7 {[%clk 0:00:52]} 22. Qe3 {[%clk 0:00:07]}  Rc8 {[%clk 0:00:49]} 23. Rd1 {[%clk 0:00:07]}  Qc7 {[%clk 0:00:44]} 24. Rd2 {[%clk 0:00:06]}  Nb6 {[%clk 0:00:26]} 25. Ng4 {[%clk 0:00:04]}  Bxg4 {[%clk 0:00:24]} 26. Bxg4 {[%clk 0:00:04]}  Nbc4 {[%clk 0:00:22]} 27. Be6+ {[%clk 0:00:04]}  Kh7 {[%clk 0:00:21]} 28. Qe2 {[%clk 0:00:03]}  Nxd2 {[%clk 0:00:21]} 29. Qxd2 {[%clk 0:00:04]}  Nd3+ {[%clk 0:00:15]} 30. Kd1 {[%clk 0:00:02]}  Qxg3 {[%clk 0:00:15]} 31. cxd3 {[%clk 0:00:02]}  e3 {[%clk 0:00:15]} 32. Qe2 {[%clk 0:00:01]}  Rf2 {[%clk 0:00:15]} 0-1


[Site "https://www.chess.com"]

[Event "Titled Tuesday Blitz August 17 2021"]
[White "Federzoni, Enzo"]
[Black "Kopacz, Grzegorz"]
[WhiteFideId "2173301"]
[BlackFideId "1109880"]
[WhiteElo "1956"]
[BlackElo "2214"]
[Result "1-0"]
[Round "06"]
[TimeControl "180+1"]
[Date "2021.08.18"]
[WhiteClock "0:00:28"]
[BlackClock "0:00:02"]

1. e4 {[%clk 0:03:00]}  c5 {[%clk 0:02:59]} 2. Nf3 {[%clk 0:02:58]}  g6 {[%clk 0:02:59]} 3. Bc4 {[%clk 0:02:57]}  Bg7 {[%clk 0:02:58]} 4. c3 {[%clk 0:02:56]}  e6 {[%clk 0:02:47]} 5. O-O {[%clk 0:02:51]}  Ne7 {[%clk 0:02:45]} 6. d4 {[%clk 0:02:45]}  cxd4 {[%clk 0:02:42]} 7. Nxd4 {[%clk 0:02:46]}  a6 {[%clk 0:02:38]} 8. Bg5 {[%clk 0:02:45]}  d6 {[%clk 0:02:33]} 9. a4 {[%clk 0:02:44]}  O-O {[%clk 0:02:29]} 10. Re1 {[%clk 0:02:42]}  Qc7 {[%clk 0:02:23]} 11. Na3 {[%clk 0:02:32]}  Nbc6 {[%clk 0:02:20]} 12. Qd2 {[%clk 0:02:30]}  Re8 {[%clk 0:02:06]} 13. Rad1 {[%clk 0:02:25]}  Nxd4 {[%clk 0:01:50]} 14. cxd4 {[%clk 0:02:24]}  Bd7 {[%clk 0:01:49]} 15. b3 {[%clk 0:02:14]}  d5 {[%clk 0:01:25]} 16. exd5 {[%clk 0:02:11]}  Nxd5 {[%clk 0:01:23]} 17. Bxd5 {[%clk 0:02:06]}  exd5 {[%clk 0:01:23]} 18. Nb1 {[%clk 0:02:01]}  Rac8 {[%clk 0:01:16]} 19. Rc1 {[%clk 0:01:59]}  Rxe1+ {[%clk 0:01:11]} 20. Qxe1 {[%clk 0:02:00]}  Qb8 {[%clk 0:01:07]} 21. Nc3 {[%clk 0:01:53]}  Be6 {[%clk 0:01:06]} 22. Qd2 {[%clk 0:01:47]}  Qc7 {[%clk 0:00:56]} 23. h3 {[%clk 0:01:43]}  h5 {[%clk 0:00:46]} 24. Ne2 {[%clk 0:01:43]}  Qd7 {[%clk 0:00:44]} 25. Nf4 {[%clk 0:01:39]}  Rxc1+ {[%clk 0:00:41]} 26. Qxc1 {[%clk 0:01:40]}  Bxd4 {[%clk 0:00:39]} 27. Nxe6 {[%clk 0:01:29]}  Qxe6 {[%clk 0:00:34]} 28. Qd2 {[%clk 0:01:28]}  Bg7 {[%clk 0:00:30]} 29. Be3 {[%clk 0:01:28]}  Qe4 {[%clk 0:00:23]} 30. Bc5 {[%clk 0:01:22]}  Qb1+ {[%clk 0:00:21]} 31. Kh2 {[%clk 0:01:21]}  Qxb3 {[%clk 0:00:21]} 32. g3 {[%clk 0:01:20]}  Qc4 {[%clk 0:00:21]} 33. Be3 {[%clk 0:01:18]}  d4 {[%clk 0:00:21]} 34. Bf4 {[%clk 0:01:19]}  Qc3 {[%clk 0:00:22]} 35. Qe2 {[%clk 0:01:17]}  d3 {[%clk 0:00:21]} 36. Qe8+ {[%clk 0:01:18]}  Kh7 {[%clk 0:00:22]} 37. Qd7 {[%clk 0:01:13]}  d2 {[%clk 0:00:21]} 38. Bxd2 {[%clk 0:01:12]}  Qc5 {[%clk 0:00:21]} 39. Be3 {[%clk 0:01:12]}  Qc6 {[%clk 0:00:21]} 40. Qxf7 {[%clk 0:01:12]}  Qxa4 {[%clk 0:00:21]} 41. Qxb7 {[%clk 0:01:08]}  Qb5 {[%clk 0:00:21]} 42. Qc7 {[%clk 0:01:02]}  Kg8 {[%clk 0:00:16]} 43. Qd8+ {[%clk 0:00:58]}  Kh7 {[%clk 0:00:16]} 44. Qe7 {[%clk 0:00:58]}  Qe5 {[%clk 0:00:13]} 45. Qb7 {[%clk 0:00:56]}  h4 {[%clk 0:00:13]} 46. Bf4 {[%clk 0:00:49]}  hxg3+ {[%clk 0:00:12]} 47. Bxg3 {[%clk 0:00:49]}  Qb5 {[%clk 0:00:12]} 48. Qf7 {[%clk 0:00:46]}  a5 {[%clk 0:00:11]} 49. Bf4 {[%clk 0:00:40]}  a4 {[%clk 0:00:09]} 50. Qe7 {[%clk 0:00:38]}  Qf5 {[%clk 0:00:08]} 51. Be3 {[%clk 0:00:36]}  Qe5+ {[%clk 0:00:08]} 52. Qxe5 {[%clk 0:00:33]}  Bxe5+ {[%clk 0:00:08]} 53. f4 {[%clk 0:00:31]}  Bb2 {[%clk 0:00:03]} 54. Bc5 {[%clk 0:00:31]}  a3 {[%clk 0:00:03]} 55. Bxa3 {[%clk 0:00:30]}  Bxa3 {[%clk 0:00:03]} 56. h4 {[%clk 0:00:30]}  Kh6 {[%clk 0:00:02]} 57. Kg3 {[%clk 0:00:28]}  Bd6 {[%clk 0:00:02]} 58. Kg4 {[%clk 0:00:28]} 1-0


[Site "https://www.chess.com"]

[Event "Titled Tuesday Blitz August 17 2021"]
[White "Franchini, Gabriele"]
[Black "Golizadeh, Asghar"]
[WhiteFideId "806790"]
[BlackFideId "12505269"]
[WhiteElo "2215"]
[BlackElo "2403"]
[Result "1-0"]
[Round "06"]
[TimeControl "180+1"]
[Date "2021.08.18"]
[WhiteClock "0:00:13"]
[BlackClock "0:00:14"]

1. e4 {[%clk 0:03:00]}  c5 {[%clk 0:02:59]} 2. Nf3 {[%clk 0:03:00]}  d6 {[%clk 0:02:59]} 3. d4 {[%clk 0:03:01]}  cxd4 {[%clk 0:03:00]} 4. Nxd4 {[%clk 0:03:01]}  Nf6 {[%clk 0:03:00]} 5. Nc3 {[%clk 0:03:02]}  a6 {[%clk 0:03:00]} 6. Bg5 {[%clk 0:03:01]}  Nbd7 {[%clk 0:03:00]} 7. Bc4 {[%clk 0:03:01]}  Qb6 {[%clk 0:03:00]} 8. Qd2 {[%clk 0:02:52]}  Qxb2 {[%clk 0:02:56]} 9. Rb1 {[%clk 0:02:51]}  Qa3 {[%clk 0:02:56]} 10. O-O {[%clk 0:02:32]}  Qc5 {[%clk 0:02:51]} 11. Be2 {[%clk 0:01:59]}  e6 {[%clk 0:02:42]} 12. Kh1 {[%clk 0:01:56]}  Be7 {[%clk 0:02:41]} 13. Be3 {[%clk 0:01:52]}  Qc7 {[%clk 0:02:37]} 14. f4 {[%clk 0:01:52]}  O-O {[%clk 0:02:29]} 15. Bf3 {[%clk 0:01:51]}  Rb8 {[%clk 0:02:15]} 16. a4 {[%clk 0:01:44]}  b6 {[%clk 0:01:52]} 17. e5 {[%clk 0:01:42]}  dxe5 {[%clk 0:01:49]} 18. Nc6 {[%clk 0:01:42]}  Bc5 {[%clk 0:01:28]} 19. Nxb8 {[%clk 0:01:33]}  Bxe3 {[%clk 0:01:24]} 20. Qxe3 {[%clk 0:01:34]}  exf4 {[%clk 0:01:24]} 21. Qd4 {[%clk 0:01:09]}  Qxb8 {[%clk 0:01:05]} 22. Rfd1 {[%clk 0:01:08]}  Qc7 {[%clk 0:00:57]} 23. Rb2 {[%clk 0:01:00]}  h6 {[%clk 0:00:47]} 24. Rdb1 {[%clk 0:00:59]}  e5 {[%clk 0:00:36]} 25. Nd5 {[%clk 0:00:52]}  Nxd5 {[%clk 0:00:28]} 26. Qxd5 {[%clk 0:00:53]}  Nf6 {[%clk 0:00:28]} 27. Qc6 {[%clk 0:00:50]}  Qe7 {[%clk 0:00:23]} 28. Rxb6 {[%clk 0:00:44]}  e4 {[%clk 0:00:23]} 29. Be2 {[%clk 0:00:39]}  Bg4 {[%clk 0:00:13]} 30. Bxg4 {[%clk 0:00:33]}  Nxg4 {[%clk 0:00:14]} 31. Qd6 {[%clk 0:00:31]}  Qh4 {[%clk 0:00:13]} 32. h3 {[%clk 0:00:27]}  Nf2+ {[%clk 0:00:13]} 33. Kg1 {[%clk 0:00:26]}  Qg3 {[%clk 0:00:14]} 34. Kf1 {[%clk 0:00:17]}  f3 {[%clk 0:00:12]} 35. Qxg3 {[%clk 0:00:16]}  e3 {[%clk 0:00:08]} 36. Qxf2 {[%clk 0:00:14]}  exf2 {[%clk 0:00:08]} 37. Kxf2 {[%clk 0:00:15]}  fxg2 {[%clk 0:00:09]} 38. Kxg2 {[%clk 0:00:15]}  Kh7 {[%clk 0:00:10]} 39. Rb8 {[%clk 0:00:15]}  Rxb8 {[%clk 0:00:08]} 40. Rxb8 {[%clk 0:00:16]}  g5 {[%clk 0:00:09]} 41. Ra8 {[%clk 0:00:16]}  Kg6 {[%clk 0:00:10]} 42. Rxa6+ {[%clk 0:00:16]}  Kh5 {[%clk 0:00:09]} 43. Kg3 {[%clk 0:00:15]}  f6 {[%clk 0:00:10]} 44. Rxf6 {[%clk 0:00:13]}  g4 {[%clk 0:00:09]} 45. hxg4+ {[%clk 0:00:13]}  Kg5 {[%clk 0:00:10]} 46. Rf5+ {[%clk 0:00:13]}  Kg6 {[%clk 0:00:09]} 47. a5 {[%clk 0:00:13]}  h5 {[%clk 0:00:08]} 48. Rxh5 {[%clk 0:00:12]}  Kf6 {[%clk 0:00:09]} 49. Rd5 {[%clk 0:00:12]}  Kg6 {[%clk 0:00:10]} 50. c4 {[%clk 0:00:12]}  Kf6 {[%clk 0:00:11]} 51. a6 {[%clk 0:00:13]}  Kg6 {[%clk 0:00:12]} 52. a7 {[%clk 0:00:13]}  Kg7 {[%clk 0:00:12]} 53. Rd6 {[%clk 0:00:13]}  Kf7 {[%clk 0:00:13]} 54. Rb6 {[%clk 0:00:13]}  Ke7 {[%clk 0:00:13]} 55. a8=Q {[%clk 0:00:11]}  Kf7 {[%clk 0:00:14]} 56. Qa7+ {[%clk 0:00:12]}  Ke8 {[%clk 0:00:14]} 57. Rb8# {[%clk 0:00:13]} 1-0


[Site "https://www.chess.com"]

[Event "Titled Tuesday Blitz August 17 2021"]
[White "Garriga Cazorla, Pere"]
[Black "Demchenko, Anton"]
[WhiteFideId "32011601"]
[BlackFideId "4160258"]
[WhiteElo "2430"]
[BlackElo "2583"]
[Result "1-0"]
[Round "06"]
[TimeControl "180+1"]
[Date "2021.08.17"]
[WhiteClock "0:00:20"]
[BlackClock "0:00:01"]

1. d4 {[%clk 0:03:00]}  d5 {[%clk 0:02:58]} 2. c4 {[%clk 0:02:56]}  dxc4 {[%clk 0:02:57]} 3. Nf3 {[%clk 0:02:52]}  a6 {[%clk 0:02:56]} 4. a4 {[%clk 0:02:50]}  Nf6 {[%clk 0:02:53]} 5. e3 {[%clk 0:02:50]}  Bg4 {[%clk 0:02:53]} 6. Bxc4 {[%clk 0:02:50]}  e6 {[%clk 0:02:53]} 7. Be2 {[%clk 0:02:49]}  Nc6 {[%clk 0:02:53]} 8. Nbd2 {[%clk 0:02:50]}  Bb4 {[%clk 0:02:46]} 9. O-O {[%clk 0:02:49]}  O-O {[%clk 0:02:46]} 10. Nc4 {[%clk 0:02:49]}  Bd6 {[%clk 0:02:34]} 11. b3 {[%clk 0:02:49]}  Nd5 {[%clk 0:02:32]} 12. Bb2 {[%clk 0:02:48]}  f5 {[%clk 0:02:31]} 13. h3 {[%clk 0:02:44]}  Bh5 {[%clk 0:02:31]} 14. Nfd2 {[%clk 0:02:38]}  Bxe2 {[%clk 0:02:30]} 15. Qxe2 {[%clk 0:02:38]}  Qe8 {[%clk 0:02:30]} 16. Nxd6 {[%clk 0:02:30]}  cxd6 {[%clk 0:02:30]} 17. Nc4 {[%clk 0:02:31]}  Rd8 {[%clk 0:02:25]} 18. Ba3 {[%clk 0:02:30]}  Qe7 {[%clk 0:02:25]} 19. Rac1 {[%clk 0:02:30]}  f4 {[%clk 0:02:17]} 20. Qg4 {[%clk 0:01:56]}  f3 {[%clk 0:02:11]} 21. g3 {[%clk 0:01:28]}  Kh8 {[%clk 0:01:46]} 22. Rfd1 {[%clk 0:01:19]}  Rf6 {[%clk 0:00:53]} 23. Qh4 {[%clk 0:01:08]}  h6 {[%clk 0:00:38]} 24. Ne5 {[%clk 0:00:36]}  Rc8 {[%clk 0:00:20]} 25. e4 {[%clk 0:00:29]}  g5 {[%clk 0:00:05]} 26. Qh5 {[%clk 0:00:22]}  Nb6 {[%clk 0:00:02]} 27. Ng6+ {[%clk 0:00:18]}  Rxg6 {[%clk 0:00:02]} 28. Qxg6 {[%clk 0:00:19]}  Rf8 {[%clk 0:00:03]} 29. Qxh6+ {[%clk 0:00:19]}  Kg8 {[%clk 0:00:03]} 30. Qg6+ {[%clk 0:00:19]}  Kh8 {[%clk 0:00:03]} 31. d5 {[%clk 0:00:19]}  Ne5 {[%clk 0:00:03]} 32. Qh5+ {[%clk 0:00:19]}  Kg7 {[%clk 0:00:03]} 33. dxe6 {[%clk 0:00:19]}  Rh8 {[%clk 0:00:03]} 34. Bxd6 {[%clk 0:00:19]}  Qxd6 {[%clk 0:00:02]} 35. Rxd6 {[%clk 0:00:20]}  Rxh5 {[%clk 0:00:02]} 36. Rxb6 {[%clk 0:00:20]}  Rxh3 {[%clk 0:00:02]} 37. Rc7+ {[%clk 0:00:20]}  Kf6 {[%clk 0:00:01]} 38. e7+ {[%clk 0:00:20]}  Kf7 {[%clk 0:00:02]} 39. Rf6+ {[%clk 0:00:19]}  Kxf6 {[%clk 0:00:01]} 40. e8=Q {[%clk 0:00:20]}  g4 {[%clk 0:00:01]} 41. Qe7+ {[%clk 0:00:20]} 1-0


[Site "https://www.chess.com"]